bitfinex-derivatives/quotes_BTCF0:USTF0_20241013
["timestamp","ask_amount","ask_price","bid_price","bid_amount"]
[1728857205395,0.079328,63052.0,63037.0,0.079345]
[1728857205603,0.5208,63061.0,63042.0,0.079339]
[1728857205604,0.16,63045.0,63042.0,0.079339]
[1728857206104,0.16,63045.0,63043.0,0.079338]
[1728857206311,0.16,63044.0,63040.0,0.0317]
[1728857206503,0.16,63044.0,63043.0,0.079338]
[1728857206700,0.079341,63041.0,63040.0,0.0317]
[1728857207002,0.079347,63036.0,63023.0,0.03]
[1728857207204,0.16,63029.0,63028.0,0.079357]
[1728857207904,0.16,63029.0,63024.0,0.0331]
[1728857207905,0.25,63032.0,63031.0,0.079353]
[1728857208202,0.25,63032.0,63024.0,0.0331]
[1728857208402,0.25,63030.0,63029.0,0.079356]
[1728857208905,0.3608,63035.0,63024.0,0.0331]
[1728857208906,0.25,63032.0,63024.0,0.0331]
[1728857209111,0.251,63032.0,63031.0,0.079353]
[1728857210609,0.252,63032.0,63031.0,0.079353]
[1728857211506,0.251,63032.0,63031.0,0.079353]
[1728857211709,0.002,63032.0,63031.0,0.079353]
[1728857211914,0.3608,63035.0,63025.0,0.25]
[1728857212212,0.3608,63035.0,63034.0,0.07935]
[1728857213003,0.3618,63035.0,63034.0,0.07935]
[1728857213312,0.002,63035.0,63034.0,0.07935]
[1728857213507,0.3628,63035.0,63028.0,0.079356]
[1728857213714,0.3628,63035.0,63022.0,0.3608]
[1728857213715,0.25,63029.0,63026.0,0.0325]
[1728857214506,0.25,63029.0,63028.0,0.079357]
[1728857215712,0.25,63029.0,63016.0,0.079372]
[1728857215713,0.079364,63023.0,63016.0,0.079372]
[1728857215914,0.079364,63023.0,63017.0,0.079371]
[1728857215915,0.25,63018.0,63017.0,0.079371]
[1728857216113,0.25,63022.0,63017.0,0.3608]
[1728857216316,0.25,63022.0,63021.0,0.079366]
[1728857216706,0.36264,63029.0,63025.0,0.079361]
[1728857216707,0.25,63026.0,63025.0,0.079361]
[1728857217000,0.3628,63029.0,63028.0,0.079357]
[1728857217001,0.002,63029.0,63028.0,0.079357]
[1728857217211,0.001,63029.0,63028.0,0.079357]
[1728857219412,0.001,63029.0,63023.0,0.3608]
[1728857219413,0.002,63029.0,63023.0,0.3608]
[1728857219612,0.25,63024.0,63023.0,0.440163]
[1728857219812,0.25,63028.0,63027.0,0.079358]
[1728857221108,0.330357,63028.0,63023.0,0.3608]
[1728857221307,0.25,63024.0,63023.0,0.3608]
[1728857221816,0.002,63028.0,63027.0,0.079358]
[1728857222721,0.001,63024.0,63023.0,0.440163]
[1728857224120,0.002,63024.0,63023.0,0.440163]
[1728857224622,0.001,63024.0,63023.0,0.440163]
[1728857225523,0.002,63024.0,63023.0,0.440163]
[1728857230026,0.54924625,63041.0,63023.0,1.4368]
[1728857230027,0.3608,63041.0,63023.0,1.4368]
[1728857230219,0.0037,63041.0,63040.0,0.079342]
[1728857230419,0.00238019,63042.0,63041.0,0.079341]
[1728857231919,0.00338019,63042.0,63041.0,0.079341]
[1728857232719,0.00238019,63042.0,63041.0,0.079341]
[1728857232923,0.16,63056.0,63054.0,0.079324]
[1728857233126,0.1608,63056.0,63055.0,0.079323]
[1728857233324,0.16,63056.0,63055.0,0.079323]
[1728857235239,0.16,63056.0,63055.0,0.1421472]
[1728857235520,0.16,63056.0,63055.0,0.079323]
[1728857235719,0.3608,63063.0,63060.0,0.079316]
[1728857235920,0.00237926,63066.0,63065.0,0.079311]
[1728857236731,0.00237926,63066.0,63065.0,0.12636357]
[1728857237623,0.00737926,63066.0,63065.0,0.079311]
[1728857239030,0.00937926,63066.0,63065.0,0.079311]
[1728857240430,0.007,63066.0,63065.0,0.079311]
[1728857242140,0.007,63066.0,63062.0,0.02860158]
[1728857242141,0.16,63067.0,63062.0,0.02860158]
[1728857242336,0.16,63067.0,63066.0,0.079309]
[1728857245145,0.164,63067.0,63066.0,0.079309]
[1728857245630,0.161,63067.0,63066.0,0.079309]
[1728857245835,0.167,63067.0,63066.0,0.080309]
[1728857246439,0.166,63067.0,63066.0,0.080309]
[1728857246633,0.169,63067.0,63066.0,0.080309]
[1728857247242,0.167,63067.0,63066.0,0.079309]
[1728857247428,0.167,63067.0,63049.0,0.3203]
[1728857247429,0.079314,63062.0,63057.0,0.3921]
[1728857247629,0.16,63058.0,63057.0,0.471421]
[1728857247836,0.16,63058.0,63057.0,0.440121]
[1728857248333,0.16,63058.0,63057.0,0.079321]
[1728857249043,0.16,63058.0,63057.0,0.083321]
[1728857249539,0.161,63058.0,63057.0,0.083321]
[1728857251035,0.164,63058.0,63057.0,0.079321]
[1728857251239,0.163,63058.0,63057.0,0.079321]
[1728857253542,0.242319,63058.0,63057.0,0.079321]
[1728857253834,0.079334,63046.0,63045.0,0.0037]
[1728857254036,0.079347,63037.0,63034.0,0.112249]
[1728857254234,0.5208,63046.0,63034.0,0.112249]
[1728857254235,0.239348,63035.0,63034.0,0.0329]
[1728857254643,0.16,63035.0,63034.0,0.0329]
[1728857255038,0.16,63035.0,63029.0,0.079356]
[1728857255039,0.079352,63032.0,63029.0,0.079356]
[1728857255236,0.154,63030.0,63029.0,0.079356]
[1728857255844,0.154,63030.0,63024.0,0.0315]
[1728857255845,0.154,63030.0,63024.0,0.079362]
[1728857256050,0.16,63026.0,63024.0,0.079362]
[1728857256547,0.239361,63026.0,63021.0,0.0329]
[1728857256842,0.239361,63026.0,63013.0,0.0037]
[1728857256843,0.078367,63020.0,63013.0,0.0037]
[1728857257049,0.16,63017.0,63012.0,0.109477]
[1728857257246,0.16,63013.0,63012.0,0.109477]
[1728857257442,0.159,63013.0,63012.0,0.109477]
[1728857258047,0.158,63013.0,63012.0,0.109477]
[1728857258738,0.159,63013.0,63012.0,0.109477]
[1728857259242,0.16,63013.0,63012.0,0.109477]
[1728857259938,0.16,63013.0,63012.0,0.079377]
[1728857262154,0.16,63013.0,63008.0,0.079382]
[1728857262340,0.16,63009.0,63008.0,0.079382]
[1728857264043,0.161,63009.0,63008.0,0.079382]
[1728857264638,0.162,63009.0,63008.0,0.079382]
[1728857267248,0.5228,63009.0,63004.0,0.079387]
[1728857267442,0.239386,63005.0,63004.0,0.079387]
[1728857269557,0.161,63005.0,63004.0,0.079387]
[1728857270460,0.162,63005.0,63004.0,0.079387]
[1728857275058,0.161,63005.0,63004.0,0.079387]
[1728857275363,0.162,63005.0,63004.0,0.079387]
[1728857275558,0.161,63005.0,63004.0,0.079387]
[1728857276763,0.161,63005.0,63004.0,0.440187]
[1728857276764,0.001,63005.0,63004.0,0.440187]
[1728857276963,0.079376,63013.0,63004.0,0.3608]
[1728857276964,0.16,63008.0,63004.0,0.3608]
[1728857277258,0.16,63008.0,63007.0,0.079384]
[1728857277858,0.3616,63017.0,63007.0,0.079384]
[1728857278053,0.3608,63017.0,63016.0,0.079372]
[1728857278255,0.16,63015.0,63014.0,0.079375]
[1728857279858,0.17,63015.0,63014.0,0.079375]
[1728857280968,0.173,63015.0,63014.0,0.079375]
[1728857281661,0.176,63015.0,63014.0,0.079375]
[1728857283164,0.079376,63013.0,63010.0,0.07938]
[1728857283356,0.16,63011.0,63010.0,0.07938]
[1728857284969,0.166,63011.0,63010.0,0.07938]
[1728857285161,0.5268,63011.0,63010.0,0.07938]
[1728857285561,0.5268,63011.0,63008.0,0.04730837]
[1728857285760,0.5268,63011.0,63006.0,0.04730837]
[1728857286062,0.5268,63011.0,63003.0,0.031]
[1728857286063,0.079385,63006.0,63005.0,0.04730837]
[1728857286364,0.239384,63007.0,63004.0,0.04730837]
[1728857286566,0.16,63007.0,63004.0,0.04730837]
[1728857286869,0.16,63007.0,63003.0,0.110389]
[1728857286870,0.079385,63006.0,63005.0,0.04730837]
[1728857287061,0.16,63007.0,63006.0,0.079385]
[1728857288260,0.16,63010.0,63009.0,0.079381]
[1728857289569,0.165,63010.0,63009.0,0.079381]
[1728857290369,0.166,63010.0,63009.0,0.079381]
[1728857290569,0.24538,63010.0,63009.0,0.079381]
[1728857290773,0.24538,63010.0,63002.0,0.0307]
[1728857290774,0.166,63010.0,63002.0,0.0307]
[1728857290974,0.166,63010.0,63005.0,0.079386]
[1728857290975,0.16,63006.0,63005.0,0.079386]
[1728857293566,0.16,63006.0,63002.0,0.110089]
[1728857293765,0.079388,63004.0,63002.0,0.110089]
[1728857294976,0.080388,63004.0,63002.0,0.110089]
[1728857296363,0.080388,63004.0,63002.0,0.0307]
[1728857296563,0.080388,63004.0,63003.0,0.079389]
[1728857297774,0.001,63004.0,63002.0,0.0307]
[1728857297968,0.001,63004.0,63002.0,0.110089]
[1728857298279,0.001,63004.0,63003.0,0.079389]
[1728857300684,0.16,63006.0,63002.0,0.0307]
[1728857300879,0.16,63006.0,63005.0,0.079386]
[1728857302985,0.161,63006.0,63005.0,0.079386]
[1728857303682,0.16,63006.0,63005.0,0.079386]
[1728857311989,0.00462,63018.0,63017.0,0.079371]
[1728857312185,0.00238134,63022.0,63021.0,0.079366]
[1728857313780,0.00838134,63022.0,63021.0,0.079366]
[1728857314177,0.03923906,63022.0,63021.0,0.079366]
[1728857314375,0.00838134,63022.0,63021.0,0.079366]
[1728857314888,0.01838134,63022.0,63021.0,0.079366]
[1728857315391,0.01638134,63022.0,63021.0,0.079366]
[1728857315584,0.01038134,63022.0,63021.0,0.079366]
[1728857315779,0.01638134,63022.0,63021.0,0.080366]
[1728857315981,0.01738134,63022.0,63021.0,0.080366]
[1728857316388,0.01138134,63022.0,63021.0,0.079366]
[1728857316690,0.01538134,63022.0,63021.0,0.079366]
[1728857316887,0.3608,63025.0,63024.0,0.079362]
[1728857317195,0.3608,63033.0,63024.0,0.079362]
[1728857317390,0.3608,63033.0,63027.0,0.3608]
[1728857317690,0.3608,63033.0,63031.0,0.079353]
[1728857317691,0.16,63032.0,63031.0,0.079353]
[1728857319594,0.167,63032.0,63031.0,0.079353]
[1728857319987,0.172,63032.0,63031.0,0.080353]
[1728857321483,0.165,63032.0,63031.0,0.080353]
[1728857321688,0.172,63032.0,63031.0,0.080353]
[1728857322177,0.171,63032.0,63031.0,0.080353]
[1728857322385,0.167,63032.0,63031.0,0.080353]
[1728857322579,0.172,63032.0,63031.0,0.081353]
[1728857322781,0.173,63032.0,63031.0,0.081353]
[1728857324488,0.013,63032.0,63031.0,0.081353]
[1728857324699,0.013,63032.0,63031.0,0.241353]
[1728857324993,0.013,63032.0,63031.0,0.081353]
[1728857325382,0.3608,63043.0,63038.0,0.079344]
[1728857325587,0.3608,63043.0,63031.0,0.002]
[1728857325588,0.16,63043.0,63040.0,0.079342]
[1728857326588,0.012,63041.0,63040.0,0.079342]
[1728857327481,0.3608,63050.0,63049.0,0.079331]
[1728857328396,0.00237952,63054.0,63053.0,0.079326]
[1728857329488,0.00337952,63054.0,63053.0,0.079326]
[1728857330689,0.00337952,63054.0,63049.0,0.079331]
[1728857330690,0.079326,63053.0,63049.0,0.079331]
[1728857330897,0.16,63050.0,63040.0,0.033]
[1728857331095,0.079333,63048.0,63044.0,0.079336]
[1728857332092,0.16,63045.0,63044.0,0.079336]
[1728857332291,0.16,63045.0,63044.0,0.084336]
[1728857332695,0.5216,63052.0,63051.0,0.079328]
[1728857332898,0.5208,63052.0,63051.0,0.079328]
[1728857334600,0.5278,63052.0,63051.0,0.080328]
[1728857334984,0.607127,63052.0,63051.0,0.001]
[1728857335190,0.607127,63052.0,63039.0,0.0037]
[1728857335191,0.079342,63040.0,63039.0,0.0037]
[1728857335391,0.079342,63040.0,63023.0,0.3645]
[1728857335392,0.07935,63034.0,63029.0,0.079356]
[1728857335597,0.07935,63034.0,63031.0,0.079353]
[1728857335598,0.16,63032.0,63031.0,0.079353]
[1728857336699,0.3608,63034.0,63033.0,0.079351]
[1728857336897,0.16,63036.0,63034.0,0.079349]
[1728857338503,0.079352,63033.0,63031.0,0.014]
[1728857338699,0.16,63032.0,63031.0,0.014]
[1728857339199,0.16,63032.0,63030.0,0.079354]
[1728857339896,0.16,63032.0,63031.0,0.004]
[1728857340302,0.16,63032.0,63031.0,0.083353]
[1728857340701,0.19101389,63032.0,63031.0,0.079353]
[1728857341094,0.19106225,63032.0,63031.0,0.079353]
[1728857341788,0.03106225,63032.0,63031.0,0.079353]
[1728857342199,0.16,63039.0,63038.0,0.079344]
[1728857342498,0.1911113,63039.0,63038.0,0.079344]
[1728857343100,0.0311113,63039.0,63038.0,0.079344]
[1728857343298,0.0411113,63039.0,63038.0,0.080344]
[1728857344198,0.003,63039.0,63038.0,0.079344]
[1728857344400,0.005,63039.0,63038.0,0.079344]
[1728857344900,0.003,63039.0,63038.0,0.079344]
[1728857345111,0.006,63039.0,63038.0,0.079344]
[1728857345509,0.003,63039.0,63038.0,0.079344]
[1728857346603,0.16,63039.0,63032.0,0.3628]
[1728857346909,0.079343,63039.0,63038.0,0.003]
[1728857347098,0.079343,63039.0,63038.0,0.005]
[1728857347294,0.080343,63039.0,63038.0,0.002]
[1728857347694,0.080343,63039.0,63026.0,0.3608]
[1728857347695,1.476223,63039.0,63026.0,0.3608]
[1728857347904,0.5208,63029.0,63025.0,0.07797993]
[1728857348103,0.07936,63026.0,63025.0,0.07797993]
[1728857349208,0.079358,63028.0,63025.0,0.07797993]
[1728857349410,0.079359,63027.0,63025.0,0.07797993]
[1728857350109,0.079359,63027.0,63025.0,0.09097993]
[1728857350303,0.5208,63029.0,63026.0,0.079358]
[1728857350504,0.5208,63029.0,63028.0,0.079357]
[1728857351502,0.16,63029.0,63028.0,0.079357]
[1728857353006,0.36538,63043.0,63034.0,0.07935]
[1728857353210,0.16,63042.0,63041.0,0.079341]
[1728857354412,0.172,63042.0,63041.0,0.080341]
[1728857355004,0.179,63042.0,63041.0,0.081341]
[1728857361814,0.019,63042.0,63041.0,0.081341]
[1728857366418,0.14545679,63042.0,63041.0,0.081341]
[1728857366615,0.08918473,63042.0,63041.0,0.081341]
[1728857369222,0.21564152,63042.0,63041.0,0.081341]
[1728857370013,0.12688288,63042.0,63041.0,1.157221]
[1728857370330,0.00042609,63042.0,63041.0,1.157221]
[1728857370511,0.28883631,63054.0,63041.0,1.157221]
[1728857370824,0.03885099,63053.0,63052.0,0.079327]
[1728857371821,0.16237952,63054.0,63053.0,0.079326]
[1728857372023,0.2012304,63054.0,63053.0,0.079326]
[1728857372522,0.04123063,63054.0,63053.0,0.079326]
[1728857372722,0.16237952,63054.0,63053.0,0.079326]
[1728857373520,0.14176908,63065.0,63053.0,0.715126]
[1728857373521,0.079311,63065.0,63053.0,0.715126]
[1728857373825,0.079311,63065.0,63064.0,0.079312]
[1728857374324,0.02799866,63074.0,63056.0,0.079321]
[1728857374528,0.02799866,63074.0,63055.0,0.16]
[1728857374529,0.16,63065.0,63064.0,0.079312]
[1728857376018,0.161,63065.0,63064.0,0.080312]
[1728857377223,0.161,63065.0,63064.0,0.081312]
[1728857378620,0.161,63065.0,63064.0,0.002]
[1728857378621,0.240311,63065.0,63064.0,0.002]
[1728857378821,0.240311,63065.0,63054.0,0.00562]
[1728857378822,1.75752,63065.0,63054.0,0.00562]
[1728857379021,0.079324,63054.0,63047.0,0.0037]
[1728857379228,0.16,63048.0,63046.0,0.079333]
[1728857379428,0.16,63048.0,63045.0,0.0308]
[1728857379429,0.079333,63047.0,63045.0,0.0308]
[1728857379727,0.079333,63047.0,63046.0,0.079334]
[1728857380031,0.16,63048.0,63046.0,0.079334]
[1728857380230,0.16,63048.0,63047.0,0.002]
[1728857380432,0.16,63048.0,63047.0,0.081333]
[1728857380626,0.16,63048.0,63047.0,0.079333]
[1728857381528,0.19102674,63048.0,63047.0,0.079333]
[1728857382025,0.03102674,63048.0,63047.0,0.440133]
[1728857382532,0.03202674,63048.0,63047.0,0.440133]
[1728857383032,0.03502674,63048.0,63047.0,0.440133]
[1728857383429,0.03102674,63048.0,63047.0,0.445133]
[1728857383620,0.03102674,63048.0,63047.0,0.447133]
[1728857384525,0.03102674,63048.0,63047.0,0.445133]
[1728857385325,0.03102674,63048.0,63047.0,0.440133]
[1728857385525,0.03102674,63048.0,63047.0,0.445133]
[1728857385831,0.28645679,63051.0,63047.0,0.084333]
[1728857386135,0.03102674,63050.0,63049.0,0.079331]
[1728857387218,0.03302674,63050.0,63049.0,0.079331]
[1728857388432,0.002,63050.0,63049.0,0.079331]
[1728857388825,0.002,63050.0,63049.0,0.080331]
[1728857389425,0.002,63050.0,63049.0,0.079331]
[1728857389632,0.002,63050.0,63049.0,0.082331]
[1728857389834,0.002,63050.0,63049.0,0.11055703]
[1728857390530,0.16,63051.0,63049.0,0.03122603]
[1728857390736,0.16,63051.0,63050.0,0.079329]
[1728857392140,0.16,63055.0,63049.0,0.03022603]
[1728857392431,0.001,63051.0,63050.0,0.079329]
[1728857393026,0.001,63051.0,63050.0,0.080329]
[1728857393639,0.16,63055.0,63054.0,0.079324]
[1728857394937,0.162,63055.0,63054.0,0.079324]
[1728857395626,0.002,63055.0,63054.0,0.079324]
[1728857402838,0.162,63055.0,63054.0,0.079324]
[1728857403336,0.002,63055.0,63054.0,0.079324]
[1728857403538,0.16552816,63066.0,63054.0,1.23576]
[1728857403731,0.440098,63075.0,63067.0,0.079308]
[1728857403732,0.1266853,63068.0,63067.0,0.079308]
[1728857403928,0.03884171,63068.0,63067.0,0.079308]
[1728857404940,0.04084171,63068.0,63067.0,0.080308]
[1728857405628,0.04084171,63068.0,63067.0,0.081308]
[1728857406130,0.12014871,63068.0,63067.0,0.081308]
[1728857407146,0.1201479,63068.0,63067.0,0.081308]
[1728857407442,0.002,63068.0,63067.0,0.081308]
[1728857407640,0.081307,63068.0,63067.0,0.081308]
[1728857410642,0.081307,63068.0,63067.0,0.002]
[1728857413150,0.556987,63068.0,63067.0,0.002]
[1728857413352,0.620587,63068.0,63067.0,0.002]
[1728857414051,0.17619681,63068.0,63067.0,0.002]
[1728857414751,0.17619681,63068.0,63054.0,0.0037]
[1728857414752,1.33256981,63068.0,63054.0,0.0037]
[1728857414941,1.33256981,63068.0,63052.0,0.440126]
[1728857414942,0.079326,63053.0,63052.0,0.36272]
[1728857415258,0.079326,63053.0,63052.0,0.3608]
[1728857415952,0.079327,63052.0,63044.0,0.0328]
[1728857416168,0.5208,63045.0,63036.0,0.0365]
[1728857416453,0.079346,63037.0,63036.0,0.079347]
[1728857417047,0.239342,63040.0,63036.0,0.079347]
[1728857417248,0.079343,63039.0,63036.0,0.093347]
[1728857417757,0.079343,63039.0,63036.0,0.106347]
[1728857418256,0.079345,63038.0,63036.0,0.106347]
[1728857418954,0.079345,63038.0,63036.0,0.093347]
[1728857419258,0.079345,63038.0,63037.0,0.079346]
[1728857420047,0.080345,63038.0,63037.0,0.079346]
[1728857420648,0.079345,63038.0,63037.0,0.079346]
[1728857420848,0.081345,63038.0,63037.0,0.079346]
[1728857421154,0.082345,63038.0,63037.0,0.079346]
[1728857422053,0.079347,63036.0,63035.0,0.3608]
[1728857422252,0.239347,63036.0,63035.0,0.3608]
[1728857422848,0.239347,63036.0,63019.0,0.12661999]
[1728857422849,0.16,63036.0,63025.0,0.3608]
[1728857423047,0.079353,63032.0,63031.0,0.079353]
[1728857423445,0.239353,63032.0,63031.0,0.079353]
[1728857424046,0.239353,63032.0,63031.0,0.080353]
[1728857425051,0.16,63032.0,63031.0,0.080353]
[1728857427158,0.16,63032.0,63031.0,0.083353]
[1728857428868,0.16,63032.0,63031.0,0.004]
[1728857428869,0.239352,63032.0,63031.0,0.004]
[1728857430060,0.3608,63034.0,63031.0,0.083353]
[1728857430250,0.3608,63034.0,63033.0,0.079351]
[1728857432058,0.3608,63034.0,63033.0,0.080351]
[1728857432457,0.16,63035.0,63034.0,0.07935]
[1728857433763,0.161,63035.0,63034.0,0.07935]
[1728857435451,0.161,63035.0,63026.0,0.3608]
[1728857435652,0.16,63027.0,63026.0,0.4687592]
[1728857436465,0.239358,63027.0,63026.0,0.079359]
[1728857436664,0.239358,63027.0,63026.0,0.088359]
[1728857436854,0.239358,63027.0,63026.0,0.094359]
[1728857437458,0.239358,63027.0,63026.0,0.015]
[1728857439362,0.3608,63029.0,63028.0,0.079357]
[1728857440660,0.3608,63029.0,63028.0,0.086357]
[1728857440860,0.3608,63029.0,63028.0,0.090357]
[1728857444169,0.440156,63029.0,63028.0,0.090357]
[1728857445967,0.47081489,63029.0,63028.0,0.011]
[1728857448671,0.440156,63029.0,63028.0,0.011]
[1728857451066,0.079365,63022.0,63019.0,0.04741211]
[1728857451367,0.07937,63018.0,63017.0,0.0317]
[1728857451569,0.23937,63018.0,63017.0,0.0317]
[1728857451771,0.07937,63018.0,63017.0,0.0317]
[1728857451966,0.16,63020.0,63014.0,0.04741211]
[1728857452269,0.239373,63015.0,63014.0,0.12678711]
[1728857452468,0.16,63015.0,63014.0,0.079375]
[1728857452668,0.146,63015.0,63014.0,0.079375]
[1728857452865,0.16,63015.0,63013.0,0.04742598]
[1728857453070,0.16,63015.0,63014.0,0.12680098]
[1728857453461,0.16,63015.0,63014.0,0.14080098]
[1728857453772,0.16,63015.0,63014.0,0.15480098]
[1728857453960,0.16,63015.0,63014.0,0.14080098]
[1728857454168,0.16,63015.0,63014.0,0.093375]
[1728857455062,0.16,63015.0,63014.0,0.14080098]
[1728857455465,0.5208,63015.0,63013.0,0.014]
[1728857455660,0.5208,63015.0,63000.0,0.3608]
[1728857455661,0.079386,63005.0,63004.0,0.04742598]
[1728857455865,0.079386,63005.0,63002.0,0.0326]
[1728857455866,0.16,63005.0,63002.0,0.0326]
[1728857456071,0.079389,63003.0,63002.0,0.0326]
[1728857456665,0.072389,63003.0,63002.0,0.0326]
[1728857457066,0.062389,63003.0,63002.0,0.0326]
[1728857457471,0.063389,63003.0,63002.0,0.0326]
[1728857457769,0.064389,63003.0,63002.0,0.0326]
[1728857458367,0.064389,63003.0,63002.0,0.11199]
[1728857459478,0.064389,63003.0,63002.0,0.0326]
[1728857459677,0.064389,63003.0,63002.0,0.11199]
[1728857459869,0.064389,63003.0,63002.0,0.0326]
[1728857461268,0.07939,63002.0,62995.0,0.02888187]
[1728857461471,0.162,63003.0,62992.0,0.031]
[1728857461472,0.5208,62996.0,62992.0,0.031]
[1728857461676,0.239401,62993.0,62992.0,0.031]
[1728857462281,0.16,62993.0,62992.0,0.110402]
[1728857462674,0.161,62993.0,62992.0,0.110402]
[1728857463187,0.162,62993.0,62992.0,0.110402]
[1728857465280,0.161,62993.0,62992.0,0.110402]
[1728857465587,0.162,62993.0,62992.0,0.110402]
[1728857466286,0.3608,62999.0,62992.0,1.186642]
[1728857466480,0.16,63004.0,63003.0,0.079389]
[1728857468980,0.161,63004.0,63003.0,0.079389]
[1728857469791,0.161,63004.0,63003.0,0.112589]
[1728857473195,0.161,63004.0,63003.0,0.144889]
[1728857477492,0.001,63004.0,63003.0,0.144889]
[1728857478494,0.001,63004.0,63003.0,0.505689]
[1728857479489,0.001,63004.0,63003.0,0.55311498]
[1728857480401,0.001,63004.0,63003.0,0.505689]
[1728857482899,0.16,63014.0,63013.0,0.079376]
[1728857483401,0.0023811,63016.0,63015.0,0.079373]
[1728857483796,0.0023811,63016.0,63015.0,0.12673545]
[1728857484102,0.39174,63023.0,63015.0,0.12673545]
[1728857484103,0.36164,63023.0,63022.0,0.079365]
[1728857484299,0.3608,63023.0,63022.0,0.079365]
[1728857485608,0.3718,63023.0,63022.0,0.079365]
[1728857486100,0.018,63023.0,63022.0,0.079365]
[1728857488092,0.018,63023.0,63022.0,0.10813817]
[1728857497302,0.018,63023.0,63022.0,0.26813817]
[1728857497708,0.10955,63034.0,63033.0,0.079351]
[1728857497709,0.0302,63034.0,63033.0,0.079351]
[1728857499302,0.014,63034.0,63033.0,0.079351]
[1728857499810,0.028,63034.0,63033.0,0.079351]
[1728857501106,0.26735,63034.0,63033.0,0.079351]
[1728857501808,0.188,63034.0,63033.0,0.10821503]
[1728857504710,0.188,63034.0,63033.0,0.079351]
[1728857508320,0.188,63034.0,63033.0,0.10861389]
[1728857508817,0.174,63034.0,63033.0,0.10861389]
[1728857509118,0.185,63034.0,63033.0,0.10861389]
[1728857510919,0.26435,63034.0,63033.0,0.079351]
[1728857511414,0.079356,63030.0,63029.0,0.079355]
[1728857511615,0.239356,63030.0,63029.0,0.079355]
[1728857512523,0.16,63030.0,63029.0,0.079355]
[1728857512723,0.167,63030.0,63029.0,0.079355]
[1728857514117,0.178,63030.0,63029.0,0.079355]
[1728857519433,0.018,63030.0,63029.0,0.079355]
[1728857523026,0.178,63030.0,63029.0,0.079355]
[1728857523825,0.2086558,63030.0,63029.0,0.079355]
[1728857529136,0.0486558,63030.0,63029.0,0.079355]
[1728857529627,0.2086558,63030.0,63029.0,0.079355]
[1728857531222,0.20865689,63030.0,63029.0,0.079355]
[1728857531825,0.178,63030.0,63029.0,0.12670148]
[1728857532232,0.178,63030.0,63029.0,0.079355]
[1728857534825,0.178,63030.0,63029.0,0.12670148]
[1728857535227,0.018,63030.0,63029.0,0.12670148]
[1728857537940,0.018,63030.0,63029.0,0.079355]
[1728857538140,0.178,63030.0,63029.0,0.079355]
[1728857538629,0.178,63030.0,63029.0,0.12676584]
[1728857538831,0.018,63030.0,63029.0,0.079355]
[1728857539039,0.018,63030.0,63029.0,0.12676584]
[1728857539231,0.018,63030.0,63029.0,0.079355]
[1728857539433,0.5208,63041.0,63040.0,0.079342]
[1728857539928,0.5208,63041.0,63040.0,0.12674617]
[1728857540329,0.5208,63041.0,63040.0,0.079342]
[1728857540531,0.5348,63041.0,63039.0,0.04740417]
[1728857540737,0.5348,63041.0,63032.0,0.3608]
[1728857540738,0.079344,63038.0,63037.0,0.079345]
[1728857540940,0.239344,63038.0,63037.0,0.079345]
[1728857542334,0.16,63038.0,63037.0,0.079345]
[1728857542530,0.3896,63041.0,63040.0,0.079342]
[1728857542531,0.5496,63041.0,63040.0,0.079342]
[1728857542732,0.028,63041.0,63040.0,0.079342]
[1728857542940,0.028,63041.0,63040.0,0.239342]
[1728857543133,0.028,63041.0,63040.0,0.079342]
[1728857543638,0.014,63041.0,63040.0,0.079342]
[1728857544034,0.5208,63049.0,63040.0,0.716222]
[1728857544242,0.5216,63049.0,63046.0,0.079334]
[1728857544658,0.1608,63049.0,63046.0,0.079334]
[1728857544846,0.16,63049.0,63046.0,0.079334]
[1728857545740,0.00637965,63047.0,63046.0,0.080334]
[1728857546147,0.5208,63061.0,63046.0,1.316174]
[1728857546334,0.5208,63061.0,63058.0,0.079319]
[1728857546335,0.1608,63061.0,63058.0,0.079319]
[1728857546639,0.1608,63061.0,63055.0,0.3608]
[1728857546640,0.16,63065.0,63064.0,0.079312]
[1728857546841,0.23020839,63065.0,63064.0,0.079312]
[1728857547033,0.35686123,63065.0,63064.0,0.079312]
[1728857547339,0.23020839,63065.0,63064.0,0.079312]
[1728857547547,0.2706748,63065.0,63064.0,0.079312]
[1728857548041,0.007,63059.0,63056.0,0.065]
[1728857548238,0.16,63058.0,63057.0,0.079321]
[1728857550534,0.168,63058.0,63057.0,0.080321]
[1728857550941,0.175,63058.0,63057.0,0.081321]
[1728857553948,0.079306,63069.0,63068.0,0.079307]
[1728857554143,0.239306,63069.0,63068.0,0.079307]
[1728857555139,0.249306,63069.0,63068.0,0.080307]
[1728857556155,0.249306,63069.0,63068.0,0.081307]
[1728857556353,0.261306,63069.0,63068.0,0.081307]
[1728857556556,0.182,63069.0,63068.0,0.081307]
[1728857558659,0.00237928,63075.0,63074.0,0.079299]
[1728857558851,0.00237928,63075.0,63074.0,0.440099]
[1728857560555,0.01437928,63075.0,63074.0,0.441099]
[1728857561465,0.01437928,63075.0,63074.0,0.442099]